fUSD/lending_fUSD_20240216
["ID","MTS","AMOUNT","RATE_DAILY","PERIOD"]
[314243907,1708116673772,-500.0,0.00049863,60]
[314243908,1708116673782,-500.0,0.00049863,60]
[314243909,1708116673793,-500.0,0.00049863,60]
[314243910,1708116673802,-500.0,0.00049863,60]
[314243911,1708116673812,-938.59,0.00049863,60]
[314243912,1708116673822,-500.0,0.00049863,60]
[314243913,1708116673832,-500.0,0.00049863,60]
[314243914,1708116673841,-500.0,0.00049863,60]
[314243915,1708116673851,-4181.38,0.00049863,60]
[314243916,1708116673861,-500.0,0.00049863,60]
[314243917,1708116673870,-500.0,0.00049863,60]
[314243918,1708116673880,-500.0,0.00049863,60]
[314243919,1708116674066,-500.0,0.00049863,60]
[314243920,1708116674077,-500.0,0.00049863,60]
[314243921,1708116674088,-701.83,0.00049863,60]
[314243922,1708116674097,-1887.23,0.00049863,60]
[314243923,1708116674107,-1928.31,0.00049863,60]
[314243924,1708116674118,-530.67,0.00049863,60]
[314243925,1708116674128,-1141.46,0.00049863,60]
[314243926,1708116674138,-500.0,0.00049863,60]
[314243927,1708116674147,-549.14,0.00049863,60]
[314243928,1708116674158,-659.84,0.00049863,60]
[314243929,1708116674168,-1907.06,0.00049863,60]
[314243930,1708116674178,-618.79,0.00049863,60]
[314243931,1708116674188,-695.88,0.00049863,60]
[314243932,1708116674198,-1852.12,0.00049863,60]
[314243933,1708116674208,-500.0,0.00049863,60]
[314243934,1708116674220,-1200.81,0.00049863,60]
[314243935,1708116674231,-500.0,0.00049863,60]
[314243936,1708116674240,-500.0,0.00049863,60]
[314243937,1708116674251,-500.0,0.00049863,60]
[314243938,1708116674263,-500.0,0.00049863,60]
[314243939,1708116674273,-585.08409748,0.00049863,60]
[314243940,1708116675555,-1000.0,0.00042,30]
[314243941,1708116675566,-2000.0,0.00044322,120]
[314243942,1708116675575,-2000.0,0.00044322,120]
[314243943,1708116675585,-1927.0,0.000466,2]
[314243944,1708116675595,-157.0,0.00048,90]
[314243945,1708116675606,-338.44242377,0.00049315,60]
[314243946,1708116675615,-332.70969571,0.00049315,60]
[314243947,1708116675625,-500.0,0.00049315,60]
[314243948,1708116675634,-500.0,0.00049315,60]
[314243949,1708116675643,-500.0,0.00049315,60]
[314243950,1708116675652,-500.0,0.00049315,60]
[314243951,1708116675662,-26155.700919,0.0004949,30]
[314243952,1708116675673,-500.0,0.00049589,60]
[314243953,1708116675683,-572.41775291,0.00049589,60]
[314243954,1708116675692,-500.0,0.00049589,60]
[314243955,1708116675702,-500.0,0.00049589,60]
[314243956,1708116675712,-553.18590252,0.00049863,60]
[314243957,1708116675722,-500.0,0.00049863,60]
[314243958,1708116675731,-500.0,0.00049863,60]
[314243959,1708116675742,-500.0,0.00049863,60]
[314243960,1708116675752,-576.71,0.00049863,60]
[314243961,1708116675761,-500.0,0.00049863,60]
[314243962,1708116675771,-1125.98,0.00049863,60]
[314243963,1708116675780,-500.0,0.00049863,60]
[314243964,1708116675790,-500.0,0.00049863,60]
[314243965,1708116675799,-500.0,0.00049863,60]
[314243966,1708116675809,-158.23170335,0.00049863,60]
[314243967,1708116675819,-500.0,0.00049863,60]
[314243968,1708116675828,-776.47,0.00049863,60]
[314243969,1708116675838,-504.65100157,0.00049863,60]
[314243970,1708116675848,-500.0,0.00049863,60]
[314243971,1708116675858,-2758.1,0.00049863,60]
[314243972,1708116675868,-500.0,0.00049863,60]
[314243973,1708116675877,-500.0,0.00049863,60]
[314243974,1708116675885,-1035.04,0.00049863,60]
[314243975,1708116675895,-812.89,0.00049863,60]
[314243976,1708116675904,-1057.94,0.00049863,60]
[314243977,1708116675913,-679.68,0.00049863,60]
[314243978,1708116675924,-576.08,0.00049863,60]
[314243979,1708116675934,-575.09,0.00049863,60]
[314243980,1708116675943,-1024.23,0.00049863,60]
[314243981,1708116675953,-500.0,0.00049863,60]
[314243982,1708116675963,-500.0,0.00049863,60]
[314243983,1708116675975,-8064.46,0.00049863,60]
[314243984,1708116675985,-500.0,0.00049863,60]
[314243985,1708116675996,-561.04,0.00049863,60]
[314243986,1708116676005,-3295.35,0.00049863,60]
[314243987,1708116676015,-500.0,0.00049863,60]
[314243988,1708116676025,-500.0,0.00049863,60]
[314243989,1708116676035,-1999.05,0.00049863,60]
[314243990,1708116676046,-1130.2,0.00049863,60]
[314243991,1708116676056,-954.22,0.00049863,60]
[314243992,1708116676066,-500.0,0.00049863,60]
[314243993,1708116676077,-500.0,0.00049863,60]
[314243994,1708116676087,-500.0,0.00049863,60]
[314243995,1708116676097,-500.0,0.00049863,60]
[314243996,1708116676109,-1283.86,0.00049863,60]
[314243997,1708116676120,-500.0,0.00049863,60]
[314243998,1708116676130,-500.0,0.00049863,60]
[314243999,1708116676139,-2570.14,0.00049863,60]
[314244000,1708116676149,-500.0,0.00049863,60]
[314244001,1708116676159,-581.77,0.00049863,60]
[314244002,1708116676169,-155.0703878,0.00049863,60]
[314244003,1708116676179,-928.87,0.00049863,60]
[314244004,1708116676189,-500.0,0.00049863,60]
[314244005,1708116676199,-995.39,0.00049863,60]
[314244006,1708116676208,-2292.78,0.00049863,60]
[314244007,1708116676220,-512.5,0.00049863,60]
[314244008,1708116676233,-3635.75,0.00049863,5]
[314244009,1708116676243,-1006.99329277,0.00049888,40]
[314244010,1708116676253,-183.03,0.000499,7]
[314244011,1708116676265,-2582.113402,0.00049966,2]
[314244012,1708116676277,-15852.0572753,0.00049966,2]
[314244013,1708116676287,-635.57,0.00049985,60]
[314244014,1708116676300,-4490.8680244,0.00049986,2]
[314244015,1708116676310,-17685.1537522,0.00049986,2]
[314244016,1708116676320,-3619.44436956,0.00049986,2]
[314244017,1708116676335,-63135.25587105,0.00049986,2]
[314244018,1708116676352,-255.29,0.00049986,2]
[314244019,1708116676567,-500.0,0.00049863,60]
[314244020,1708116676578,-5099.16295666,0.00049986,2]
[314244021,1708116676591,-777.7,0.00049986,2]
[314244022,1708116677273,-500.0,0.00049315,60]
[314244023,1708116677283,-500.0,0.00049315,60]
[314244024,1708116677294,-500.0,0.00049315,60]
[314244025,1708116677304,-587.77509799,0.00049315,60]
[314244026,1708116677315,-152.9874678,0.00049589,60]
[314244027,1708116686348,5535.0922589,0.00023,2]
[314244028,1708116686374,5535.0922589,0.00023,2]
[314244029,1708116686399,1653.00489177,0.00023,2]
[314244030,1708116686424,1653.00489177,0.00023,2]
[314244031,1708116686451,330.00978354,0.00023,2]
[314244032,1708116686476,330.00978354,0.00023,2]
[314244033,1708116686501,2272.0922589,0.00023,2]
[314244034,1708116686526,2272.0922589,0.00023,2]
[314244035,1708116686555,2438069.77498562,0.00023,2]
[314244036,1708116690507,480.38585917,0.00018,2]
[314244037,1708116693270,828.7366542,0.0001,2]
[314244038,1708116696060,150.0,0.0002,2]
[314244039,1708116696083,150.0,0.0002,2]
[314244040,1708116696106,150.0,0.0002,2]
[314244041,1708116696129,150.0,0.0002,2]
[314244042,1708116696152,150.0,0.0002,2]
[314244043,1708116696174,0.26054769,0.0002,2]
[314244044,1708116722458,4749.35063186,0.000155,2]
[314244045,1708116726846,351.67072931,0.0002,2]
[314244046,1708116728758,2247.05675366,0.000199,3]
[314244049,1708116785456,900.0,0.000225,2]
[314244050,1708116792890,205.0,9.8e-05,2]
[314244051,1708116796414,150.0,0.0001305,2]
[314244052,1708116796436,59.67659214,0.0001305,2]
[314244064,1708117660912,-316.31424988,0.0002425,2]
[314244065,1708117660932,-219.0,0.00025197,2]
[314244066,1708117660952,-11211.89900415,0.00025198,10]
[314244067,1708117660972,-9848.725,0.00026,2]
[314244068,1708117660995,-154.57921082,0.000271,2]
[314244069,1708117661015,-10823.91647871,0.000272,2]
[314244070,1708117661035,-150.000029,0.000279,2]
[314244071,1708117661055,-377.2010419,0.00027998,2]
[314244072,1708117661077,-555.72058724,0.00027999,3]
[314244073,1708117661098,-63743.91691533,0.00028,2]
[314244074,1708117676276,-48895.0,0.00028,2]
[314244075,1708117700712,-28992.89842499,0.00028,2]
[314244076,1708117700736,-154.57921082,0.00029217,2]
[314244077,1708117700758,-531.99,0.00029429,2]
[314244078,1708117700779,-3222.09477903,0.0003,2]
[314244079,1708117700802,-1176.20171541,0.0003,4]
[314244080,1708117700822,-499.99,0.0003,2]
[314244081,1708117700845,-15422.24586975,0.0003,2]
[314244084,1708117723012,-1639.73413025,0.0003,2]
[314244085,1708117723032,-910.08,0.0003,2]
[314244086,1708117723051,-390.58352314,0.000301,2]
[314244087,1708117723072,-2847.0,0.000302,2]
[314244088,1708117723094,-24212.60234661,0.000302,2]
[314244091,1708117744230,-1614.39765339,0.000302,2]
[314244092,1708117744252,-468.11,0.00031159,2]
[314244093,1708117744273,-165.24,0.00031201,2]
[314244094,1708117744296,-200.0,0.00031317,2]
[314244095,1708117744318,-468.11,0.00031323,2]
[314244096,1708117744339,-84.14234661,0.00031333,2]
[314244097,1708117757096,-70.43686421,0.00031333,2]
[314244098,1708117757120,-250.0,0.00031339,2]
[314244099,1708117757142,-200.0,0.00031364,2]
[314244100,1708117757164,-250.0,0.00031369,2]
[314244104,1708117779113,-150.0,0.00031409,2]
[314244105,1708117779136,-2073.86,0.00031421,2]
[314244106,1708117779159,-23900.0,0.00031421,2]
[314244107,1708117779181,-250.0,0.00031421,2]
[314244108,1708117779203,-250.0,0.00031444,2]
[314244109,1708117779226,-468.11,0.00031487,2]
[314244110,1708117779247,-500.0,0.00031487,2]
[314244111,1708117779268,-2000.0,0.00031533,2]
[314244112,1708117779290,-408.03,0.00031597,2]
[314244121,1708117832132,-550.0,0.00025,3]
[314244122,1708117832142,-600.0,0.00027,3]
[314244123,1708117832152,-650.0,0.00029,3]
[314244124,1708117832161,-700.0,0.00031,3]
[314244125,1708117832170,-169.24,0.00031421,2]
[314244126,1708117832180,-1871.62,0.00031597,2]
[314244127,1708117832190,-154.28,0.00031626,2]
[314244128,1708117832198,-468.11,0.00031651,2]
[314244129,1708117832208,-499.99,0.00031651,2]
[314244130,1708117832217,-531.99,0.00031693,2]
[314244131,1708117832226,-154.28,0.00031791,2]
[314244132,1708117832235,-468.11,0.00031815,2]
[314244133,1708117832245,-203.3,0.0003184,2]
[314244134,1708117832254,-63886.23,0.00031858,2]
[314244135,1708117832264,-168.79,0.00031919,2]
[314244136,1708117832273,-154.28,0.00031956,2]
[314244137,1708117832282,-468.11,0.00031979,2]
[314244138,1708117832292,-154.28,0.0003212,2]
[314244139,1708117832302,-1922.63,0.00032126,2]
[314244140,1708117832311,-238.68,0.00032126,4]
[314244141,1708117832320,-468.11,0.00032143,2]
[314244142,1708117832329,-167.32,0.00032258,2]
[314244143,1708117832338,-154.28,0.00032285,2]
[314244144,1708117832348,-468.11,0.00032307,2]
[314244145,1708117832357,-154.28,0.0003245,2]
[314244146,1708117832367,-468.11,0.00032471,2]
[314244147,1708117832375,-154.28,0.00032615,2]
[314244148,1708117832385,-468.11,0.00032635,2]
[314244149,1708117832394,-154.28,0.0003278,2]
[314244150,1708117832403,-250.0,0.00032796,2]
[314244151,1708117832413,-468.11,0.00032799,2]
[314244152,1708117832422,-1000.0,0.00032825,2]
[314244153,1708117832431,-154.28,0.00032944,2]
[314244154,1708117832440,-468.11,0.00032963,2]
[314244155,1708117832450,-154.28,0.00033109,2]
[314244156,1708117832459,-468.11,0.00033127,2]
[314244157,1708117832468,-154.28,0.00033274,2]
[314244158,1708117832477,-468.11,0.00033291,2]
[314244159,1708117832486,-154.57921082,0.0003345,2]
[314244160,1708117832495,-468.11,0.00033455,2]
[314244161,1708117832504,-468.11,0.00033619,2]
[314244162,1708117832514,-166.13,0.00033622,2]
[314244163,1708117832523,-1922.63,0.0003377,2]
[314244164,1708117832536,-468.11,0.00033783,2]
[314244165,1708117832545,-468.11,0.00033947,2]
[314244167,1708117832554,-531.99,0.00033957,2]
[314244169,1708117832564,-468.11,0.00034111,2]
[314244171,1708117832574,-468.11,0.00034275,2]
[314244173,1708117832584,-1283.5,0.00034455,2]
[314244175,1708117832593,-155.08,0.000345,2]
[314244178,1708117832604,-153.73,0.00034651,2]
[314244179,1708117832614,-304.74234789,0.00035,4]
[314244182,1708117832624,-1568.65172402,0.00035042,2]
[314244184,1708117832633,-119153.13780353,0.0003509,2]
[314244185,1708117832642,-7536.48659017,0.00035314,2]
[314244187,1708117832651,-1922.63,0.00035414,2]
[314244188,1708117832661,-154.57921082,0.00035567,2]
[314244189,1708117832670,-152.74044294,0.0003591,5]
[314244190,1708117832679,-13671.56062311,0.00036,10]
[314244191,1708117832688,-531.99,0.00036221,2]
[314244192,1708117832698,-1568.65172392,0.00036621,2]
[314244193,1708117832708,-66736.42137932,0.000368,2]
[314244194,1708117832717,-1425.6735766,0.00036876,12]
[314244195,1708117832727,-4646.30971581,0.00036876,13]
[314244196,1708117832736,-3078.45844144,0.00036876,13]
[314244197,1708117832745,-1000.0,0.00036928,2]
[314244198,1708117832754,-7536.48659014,0.00037011,2]
[314244199,1708117832764,-1922.63,0.00037058,2]
[314244200,1708117832773,-1006.9499392,0.000374,5]
[314244201,1708117832782,-755.4247957,0.000375,5]
[314244202,1708117832792,-180.0,0.00037671,2]
[314244203,1708117832801,-154.57921082,0.00037683,2]
[314244204,1708117832811,-188.50717979,0.00037805,2]
[314244205,1708117832820,-69993.495256,0.000379,3]
[314244206,1708117832830,-200.63,0.00037905,2]
[314244207,1708117832839,-49860.999999,0.00038,2]
[314244208,1708117832850,-155.0,0.00038,4]
[314244209,1708117832859,-200.63,0.00038104,2]
[314244210,1708117832869,-1568.65172392,0.000382,2]
[314244211,1708117832878,-203.3,0.00038207,2]
[314244212,1708117832887,-200.63,0.00038304,2]
[314244213,1708117832896,-151.13,0.00038356,2]
[314244214,1708117832905,-646.78,0.00038356,15]
[314244215,1708117832915,-182.1,0.00038356,2]
[314244216,1708117832924,-531.99,0.00038485,2]
[314244217,1708117832933,-200.63,0.00038503,2]
[314244218,1708117832942,-220.0,0.00038656,7]
[314244219,1708117832951,-6331.81069915,0.00038665,2]
[314244220,1708117832960,-1922.63,0.00038701,2]
[314244221,1708117832970,-200.63,0.00038703,2]
[314244222,1708117832979,-7536.48659014,0.00038707,2]
[314244223,1708117832988,-151.021737,0.00038798,30]
[314244224,1708117832998,-150.0,0.000388,2]
[314244225,1708117833008,-177.38,0.000388,2]
[314244226,1708117833018,-500.0,0.0003888,2]
[314244227,1708117833028,-250.0,0.0003889,2]
[314244228,1708117833038,-150.0,0.000389,2]
[314244229,1708117833049,-150.0,0.000389,2]
[314244230,1708117833057,-150.0,0.000389,2]
[314244231,1708117833068,-200.63,0.00038902,2]
[314244232,1708117833077,-200.63,0.00039102,2]
[314244233,1708117833087,-151.021737,0.00039148,30]
[314244234,1708117833097,-250.0,0.00039164,2]
[314244235,1708117833107,-166.13,0.00039172,2]
[314244236,1708117833116,-220.0,0.00039204,7]
[314244237,1708117833125,-301.55,0.0003926,2]
[314244238,1708117833138,-200.63,0.00039301,2]
[314244239,1708117833147,-150.0,0.00039348,2]
[314244240,1708117833157,-177.38,0.00039348,2]
[314244241,1708117833167,-508.62105001,0.00039428,2]
[314244242,1708117833177,-151.021737,0.00039448,30]
[314244243,1708117833186,-300.0,0.00039448,2]
[314244244,1708117833196,-150.56785615,0.00039448,2]
[314244245,1708117833205,-200.63,0.00039501,2]
[314244246,1708117833214,-152.61598078,0.0003969,5]
[314244247,1708117833223,-2720.95021153,0.000397,13]
[314244248,1708117833232,-20000.0,0.000397,120]
[314244249,1708117833242,-200.63,0.000397,2]
[314244250,1708117833251,-220.0,0.00039752,7]
[314244251,1708117833260,-69993.495256,0.0003977,5]
[314244252,1708117833269,-1568.65172392,0.00039779,2]
[314244253,1708117833279,-1000.0,0.0003978,2]
[314244254,1708117833288,-69993.495256,0.0003978,6]
[314244255,1708117833297,-69993.495256,0.0003979,6]
[314244256,1708117833306,-5207.40000001,0.0003979,2]
[314244257,1708117833315,-220696.9078,0.000398,2]
[314244258,1708117833325,-154.57921082,0.000398,2]
[314244259,1708117833334,-188.50717978,0.000398,2]
[314244260,1708117833344,-600.26865531,0.000398,2]
[314244261,1708117833353,-205.91243929,0.000398,8]
[314244262,1708117833362,-2350.76825481,0.000398,2]
[314244263,1708117833371,-2195.96243054,0.000398,2]
[314244264,1708117833380,-69993.495256,0.0003987,6]
[314244265,1708117833390,-209980.485768,0.0003988,6]
[314244266,1708117833399,-51930.41153379,0.0003988,2]
[314244267,1708117833409,-150.0,0.0003988,2]
[314244268,1708117833418,-150.0,0.0003988,7]
[314244269,1708117833427,-60164.67929863,0.0003989,6]
[314244288,1708117838686,-1095.8124,0.00031982,2]
[314244290,1708117838696,-524.45,0.0003508,10]
[314244292,1708117838706,-9828.81595737,0.0003989,6]
[314244295,1708117838715,-259.55585677,0.00039896,2]
[314244297,1708117838725,-177.38,0.00039896,2]
[314244299,1708117838734,-500.0,0.00039899,31]
[314244301,1708117838744,-500.0,0.00039899,31]
[314244303,1708117838753,-500.0,0.00039899,31]
[314244305,1708117838762,-500.0,0.00039899,31]
[314244306,1708117838771,-153.05866713,0.00039899,31]
[314244308,1708117838781,-500.0,0.00039899,31]
[314244311,1708117838790,-500.0,0.00039899,31]
[314244313,1708117838801,-500.0,0.00039899,31]
[314244315,1708117838810,-312.84770306,0.00039899,31]
[314244317,1708117838820,-500.0,0.00039899,31]
[314244319,1708117838830,-500.0,0.00039899,31]
[314244321,1708117838842,-168.04937699,0.00039899,31]
[314244323,1708117838852,-348.37734377,0.00039899,31]
[314244325,1708117838861,-269.16602646,0.00039899,31]
[314244327,1708117838871,-587.35212149,0.00039899,31]
[314244329,1708117838881,-500.0,0.00039899,31]
[314244331,1708117838890,-500.0,0.00039899,31]
[314244333,1708117838899,-192.45681785,0.00039899,2]
[314244335,1708117838908,-150.0,0.00039899,2]
[314244337,1708117838923,-150.0,0.00039899,2]
[314244338,1708117838932,-192.45681785,0.00039899,2]
[314244341,1708117838941,-168.79,0.00039899,2]
[314244342,1708117838951,-199.32283251,0.000399,2]
[314244345,1708117838960,-189.49739555,0.000399,2]
[314244347,1708117838969,-490.05865859,0.000399,2]
[314244357,1708117839058,-11361.22731216,0.000399,2]
[314244359,1708117839067,-15845.97131579,0.000399,5]
[314244361,1708117839079,-61687.23515862,0.000399,5]
[314244364,1708117839091,-669.71351189,0.000399,5]
[314244366,1708117839103,-3199.999998,0.000399,5]
[314244369,1708117839123,-1556726.48560769,0.000399,5]
[314244371,1708117839132,-200.63,0.000399,2]
[314244373,1708117839141,-3658165.43910649,0.000399,3]
[314244375,1708117839151,-222.64,0.000399,7]
[314244377,1708117839161,-361.41,0.000399,7]
[314244379,1708117839170,-347.41,0.000399,7]
[314244381,1708117839179,-150.1,0.000399,2]
[314244383,1708117839188,-811.86645966,0.0004,2]
[314244385,1708117839197,-255.0,0.0004,12]
[314244387,1708117839206,-2745.44954055,0.0004,2]
[314244389,1708117839215,-200.63,0.00040099,2]
[314244391,1708117839225,-152.61598046,0.00040101,7]
[314244393,1708117839235,-151.13,0.00040274,2]
[314244395,1708117839244,-1268.63861743,0.00040284,2]
[314244397,1708117839253,-4174.8642794,0.00040284,7]
[314244399,1708117839262,-1600.60318,0.00040284,120]
[314244401,1708117839271,-6323.42450365,0.00040284,2]
[314244403,1708117839281,-1736.07852,0.00040284,30]
[314244405,1708117839290,-500.0,0.00040284,120]
[314244407,1708117839299,-1962.919507,0.00040284,30]
[314244409,1708117839307,-200.63,0.00040299,2]
[314244411,1708117839316,-220.0,0.000403,7]
[314244413,1708117839326,-1922.63,0.00040345,2]
[314244415,1708117839335,-7536.48659014,0.00040404,2]
[314244417,1708117839345,-177.38,0.00040444,2]
[314244419,1708117839355,-200.63,0.00040498,2]
[314244421,1708117839365,-152.61598046,0.00040512,8]
[314244424,1708117839374,-2720.95021151,0.00040615,14]
[314244425,1708117839384,-200.63,0.00040698,2]
[314244428,1708117839394,-301.55,0.00040733,2]
[314244430,1708117839403,-531.99,0.00040749,2]
[314244432,1708117839412,-220.0,0.00040848,7]
[314244434,1708117839421,-200.63,0.00040897,2]
[314244436,1708117839432,-154.05,0.000409,4]
[314244438,1708117839441,-405.42,0.000409,4]
[314244440,1708117839450,-405.42,0.000409,4]
[314244442,1708117839459,-405.42,0.000409,4]
[314244444,1708117839468,-405.42,0.000409,4]
[314244446,1708117839477,-405.42,0.000409,4]
[314244448,1708117839486,-405.42,0.000409,4]
[314244450,1708117839497,-405.42,0.000409,4]
[314244452,1708117839506,-405.42,0.000409,4]
[314244454,1708117839515,-405.42,0.000409,4]
[314244456,1708117839524,-405.42,0.000409,4]
[314244458,1708117839535,-405.42,0.000409,4]
[314244460,1708117839545,-405.42,0.000409,4]
[314244462,1708117839555,-405.42,0.000409,4]
[314244464,1708117839564,-405.42,0.000409,4]
[314244466,1708117839574,-405.42,0.000409,4]
[314244468,1708117839583,-405.42,0.000409,4]
[314244470,1708117839592,-405.42,0.000409,4]
[314244472,1708117839604,-405.42,0.000409,4]
[314244474,1708117839616,-405.42,0.000409,4]
[314244476,1708117839626,-405.42,0.000409,4]
[314244478,1708117839635,-152.61598046,0.00040923,10]
[314244480,1708117839644,-177.38,0.00040992,2]
[314244482,1708117839654,-3000.0,0.00041,45]
[314244484,1708117839663,-1104.83882378,0.00041,4]
[314244486,1708117839672,-3000.0,0.0004101,45]
[314244488,1708117839682,-3000.0,0.0004102,45]
[314244490,1708117839691,-3000.0,0.0004103,45]
[314244492,1708117839701,-1000.0,0.00041031,2]
[314244494,1708117839711,-3000.0,0.0004104,45]
[314244496,1708117839721,-3000.0,0.0004105,45]
[314244498,1708117839732,-3000.0,0.0004106,46]
[314244500,1708117839741,-3166.428762,0.0004107,46]
[314244502,1708117839750,-750.0,0.00041095,2]
[314244504,1708117839760,-256.97434631,0.00041096,2]
[314244506,1708117839770,-200.63,0.00041097,2]
[314244508,1708117839780,-279.26,0.000411,2]
[314244510,1708117839790,-152.0,0.00041232,3]
[314244512,1708117839799,-200.63,0.00041296,2]
[314244514,1708117839809,-152.61598046,0.00041334,11]
[314244516,1708117839820,-1568.65172392,0.00041358,5]
[314244517,1708117839829,-220.0,0.00041396,7]
[314244518,1708117839838,-1000.0,0.000414,2]
[314244519,1708117839847,-200.63,0.00041496,2]
[314244520,1708117839858,-2720.95021151,0.0004153,15]
[314244521,1708117839867,-353.24,0.0004154,2]
[314244522,1708117839876,-150.0,0.0004164,2]
[314244523,1708117839885,-200.63,0.00041695,2]
[314244524,1708117839894,-152.61598046,0.00041745,13]
[314244526,1708117839903,-220.0,0.00041944,7]
[314244528,1708117839912,-155.82037408,0.00041978,30]
[314244530,1708117839922,-163.37947036,0.00041999,4]
[314244532,1708117839931,-83842.7597691,0.00042,4]
[314244534,1708117839940,-965.23195016,0.00042,7]
[314244536,1708117839949,-153.73,0.00042004,2]
[314244538,1708117839958,-646.78,0.00042092,15]
[314244540,1708117839967,-7536.48659014,0.00042101,4]
[314244542,1708117839976,-152.61598046,0.00042156,14]
[314244544,1708117839985,-151.13,0.00042192,2]
[314244546,1708117839994,-347.41,0.000422,7]
[314244548,1708117840003,-301.55,0.00042205,2]
[314244550,1708117840011,-2720.95021151,0.00042444,17]
[314244552,1708117840020,-220.0,0.00042492,7]
[314244553,1708117840030,-152.61598046,0.00042568,16]
[314244556,1708117840040,-2073.86,0.00042654,2]
[314244558,1708117840048,-19846.0,0.00042796,2]
[314244560,1708117840057,-826.978,0.00042796,2]
[314244562,1708117840066,-8164.0,0.00042796,2]
[314244563,1708117840075,-4098.0,0.00042796,2]
[314244565,1708117840084,-2755.14210219,0.00042796,2]
[314244568,1708117840099,-2872.85789781,0.00042796,2]
[314244570,1708117840109,-2927.0,0.00042796,2]
[314244572,1708117840118,-1037.0,0.00042796,2]
[314244574,1708117840127,-150.0,0.00042796,2]
[314244576,1708117840138,-1568.65172392,0.00042937,5]
[314244578,1708117840149,-152.61598046,0.00042979,18]
[314244580,1708117840159,-531.99,0.00043013,2]
[314244582,1708117840168,-220.0,0.0004304,7]
[314244584,1708117840178,-154.05,0.000431,4]
[314244587,1708117840187,-154.05,0.000431,4]
[314244589,1708117840196,-405.42,0.000431,4]
[314244591,1708117840206,-405.42,0.000431,4]
[314244593,1708117840216,-405.42,0.000431,4]
[314244595,1708117840226,-405.42,0.000431,4]
[314244596,1708117840236,-405.42,0.000431,4]
[314244598,1708117840245,-405.42,0.000431,4]
[314244601,1708117840255,-405.42,0.000431,4]
[314244602,1708117840265,-405.42,0.000431,4]
[314244604,1708117840274,-405.42,0.000431,4]
[314244606,1708117840287,-405.42,0.000431,4]
[314244608,1708117840295,-405.42,0.000431,4]
[314244610,1708117840304,-405.42,0.000431,4]
[314244612,1708117840314,-405.42,0.000431,4]
[314244614,1708117840323,-405.42,0.000431,4]
[314244616,1708117840333,-405.42,0.000431,4]
[314244618,1708117840342,-405.42,0.000431,4]
[314244620,1708117840352,-405.42,0.000431,4]
[314244622,1708117840361,-405.42,0.000431,4]
[314244624,1708117840370,-405.42,0.000431,4]
[314244626,1708117840380,-405.42,0.000431,4]
[314244628,1708117840390,-995.48085935,0.000433,60]
[314244630,1708117840399,-3000.0,0.000433,2]
[314244632,1708117840408,-1000.0,0.000433,2]
[314244634,1708117840417,-221.31951587,0.00043353,30]
[314244636,1708117840426,-2720.95021151,0.00043359,18]
[314244638,1708117840435,-152.61598046,0.0004339,19]
[314244640,1708117840445,-221.31951587,0.00043401,30]
[314244642,1708117840456,-6331.81069915,0.00043439,5]